Cogmind - Beta 17.1 @@@ ROGUE MODE // 2026.09.02 @ 02:58:37 Player: 7H-NLC Result: Destroyed by S-43 Plague with Heavy Machine Gun Performance ------------- Evolutions (8) 4000 Regions Visited (18) 3600 Robots Destroyed (129) 645 Value Destroyed (4982) 4982 Prototype IDs (73) 1460 Alien Tech Used (3) 600 Bonus (3883) 3883 TOTAL SCORE: 19170 Bonus ------- High Alert Combat Kills 439 Follower Combat Kills 4348 Registered with UFD 300 Met Data Miner 300 Met Zhirov 300 Scanned by Researcher 500 Friendly Fire -2304 Cogmind --------- Core Integrity 0/1450 Matter 7/300 Energy 99/100 System Corruption 2% Temperature Cool (0) Movement Core (50) Location -2/Research Parts ------- > --- POWER (3) -------- (None) > --- PROPULSION (6) --- (None) > --- UTILITY (11) ----- Amulet of Y3-NDR > --- WEAPON (4) ------- (None) > --- INVENTORY (5) ---- Quantum Capacitor Perforator Long-range Missile Launcher Peak State ------------ > --- POWER ------------ Micro Antimatter Reactor Meta Core > --- PROPULSION ------- Multireflex Exoskeleton Medium Armored Exoskeleton Improved Thunder Leg Improved Thunder Leg > --- UTILITY ---------- Advanced Heat Sink High-capacity Storage Unit Energy Well Advanced Sensor Array Advanced Signal Interpreter Advanced Target Analyzer Advanced Target Analyzer Improved Transmission Jammer Centrium Medium Armor Plating Experimental Focal Shield > --- WEAPON ----------- Helical Railgun Perforator Force Lance > --- INVENTORY -------- Myomer Leg Myomer Leg Improved Thunder Leg Improved Thunder Leg Amulet of Y3-NDR Hypervelocity EM Gauss Rifle Cooled Plasma Rifle Compact HERF Cannon Matter Neutralizer Gamma Bomb Array Long-range Missile Launcher Z-bomb Delivery System CPS Tube [Rating: 177] Favorites ----------- Power F-cell Engine Engine F-cell Engine Power Core Light Fission Core Reactor Light Antimatter Reactor Propulsion Flexi-carbon Leg Treads Light Treads Leg Flexi-carbon Leg Wheel Subdweller Monowheel Flight Unit Improved Cesium-ion Thruster Utility Advanced Signal Interpreter Device Advanced Sensor Array Storage High-capacity Storage Unit Processor Advanced Signal Interpreter Hackware Advanced Hacking Suite Protection Improved Propulsion Shielding Weapon Power Sword Energy Gun Cooled Plasma Rifle Energy Cannon Cooled Particle Cannon Ballistic Gun Assault Rifle Ballistic Cannon Perforator Launcher Long-range Missile Launcher Special Weapon Remote Datajack Impact Weapon Powered Hammer Slashing Weapon Power Sword Piercing Weapon Force Lance Build | -11 -10 -10 -8 -8 -6 -6 -6 -6 -5 -5 -5 -5 -5 -4 -4 -3 -3 -2 ------- Run | Yrd Mat Sub Rec Scr Fac Low Low Dat Pro Fac Upp Upp Zhi Pro Fac Res Tes Res Slots Evolved 16 | . . . . . 8 . . . . 2 . . . . 2 2 . 2 Power 2 | . . . . . 1 . . . . . . . . . . . . 1 Propulsion 4 | . . . . . 2 . . . . 1 . . . . 1 . . . Utility 9 | . . . . . 5 . . . . 1 . . . . 1 1 . 1 Weapon 1 | . . . . . . . . . . . . . . . . 1 . . Parts Attached 179 | 5 2 29 7 14 34 1 7 . 3 13 4 1 1 5 8 16 24 5 Power 31 | 1 1 4 2 2 4 1 3 . . 2 . 1 1 . 2 3 2 2 Engine 14 | 1 1 4 2 . 4 1 1 . . . . . . . . . . . Core 6 | . . . . 2 . . 1 . . . . . . . 2 . 1 . Reactor 11 | . . . . . . . 1 . . 2 . 1 1 . . 3 1 2 Propulsion 45 | 2 . 9 3 4 10 . . . 1 3 . . . 1 . 3 7 2 Treads 4 | . . 3 . 1 . . . . . . . . . . . . . . Leg 29 | . . 3 . 2 9 . . . 1 3 . . . 1 . 3 6 1 Wheel 11 | 2 . 3 3 1 . . . . . . . . . . . . 1 1 Hover . | . . . . . . . . . . . . . . . . . . . Flight 1 | . . . . . 1 . . . . . . . . . . . . . Utility 55 | 1 1 6 1 2 10 . 3 . 2 7 2 . . 2 4 5 9 . Device 27 | . . 2 . . 9 . 1 . 1 2 1 . . 1 2 2 6 . Storage 6 | 1 . . 1 1 . . 1 . . 1 1 . . . . . . . Processor 7 | . . . . 1 1 . 1 . . . . . . . . 2 2 . Hackware 6 | . . . . . . . . . . 3 . . . 1 2 . . . Protection 9 | . 1 4 . . . . . . 1 1 . . . . . 1 1 . Artifact . | . . . . . . . . . . . . . . . . . . . Weapon 48 | 1 . 10 1 6 10 . 1 . . 1 2 . . 2 2 5 6 1 Energy Gun 9 | . . 1 . 1 1 . . . . 1 2 . . 1 . . 2 . Energy Cannon 14 | . . 2 . 1 5 . 1 . . . . . . 1 1 3 . . Ballistic Gun 6 | 1 . 2 . . . . . . . . . . . . . 1 2 . Ballistic Cannon 1 | . . . . . . . . . . . . . . . . . 1 . Launcher 4 | . . 1 . . 1 . . . . . . . . . . . 1 1 Special Weapon 5 | . . 1 1 2 1 . . . . . . . . . . . . . Impact Weapon 2 | . . 1 . 1 . . . . . . . . . . . . . . Slashing Weapon 4 | . . 1 . 1 2 . . . . . . . . . . . . . Piercing Weapon 3 | . . 1 . . . . . . . . . . . . 1 1 . . Special Melee Weapon . | . . . . . . . . . . . . . . . . . . . Unidentified Prototypes 27 | . . 1 . . 4 1 1 . . 3 . . 2 . 2 4 8 1 Corrupted Parts 3 | . . . . . . . . . . . . . . 2 . . 1 . System Corruption 12 | . . . . . . . . . . . . . . 10 . . 2 . Parts Lost 55 | . . 3 . . 1 . 2 . . . . . . . 1 22 5 21 Power 10 | . . 1 . . . . 1 . . . . . . . . 4 . 4 Propulsion 14 | . . 1 . . . . . . . . . . . . . 4 3 6 Utility 24 | . . . . . 1 . 1 . . . . . . . 1 12 1 8 Weapon 7 | . . 1 . . . . . . . . . . . . . 2 1 3 Highest Loss Streak 18 | . . 2 . . 1 . 1 . . . . . . . 1 10 2 18 To Critical Strikes . | . . . . . . . . . . . . . . . . . . . Average Backups 10 | 1 6 6 6 6 13 12 11 12 12 12 13 14 15 15 15 15 14 16 Power . | . . . . . . . . 1 1 . . . . . . 1 . 1 Propulsion 1 | 1 2 . . 1 1 2 2 3 1 1 3 3 3 3 3 4 2 2 Utility 4 | . 2 2 2 3 6 5 5 5 6 6 4 4 4 4 4 2 2 3 Weapon 2 | . 1 1 1 . 3 3 1 1 1 1 4 4 4 4 3 4 7 9 Tool/Special . | . . . . . . . . . . . . . . . . . . . Unused Backups 99 | . . 4 1 31 9 2 4 . 1 10 12 1 5 1 9 . 3 6 Power 15 | . . . . 7 . . 1 . . 3 1 . 1 . 1 . 1 . Propulsion 21 | . . . . 5 . . . . 1 3 3 . 2 . 3 . 2 2 Utility 42 | . . 4 1 14 2 2 3 . . 1 6 . 2 1 3 . . 3 Weapon 19 | . . . . 5 5 . . . . 3 2 1 . . 2 . . 1 Tool/Special 2 | . . . . . 2 . . . . . . . . . . . . . Average Slot Usage (%) 90 | . 82 96 100 92 94 99 99 88 100 89 85 85 78 85 83 83 71 64 Engine 6 | . 14 14 14 1 9 12 10 6 6 4 5 5 5 5 3 . . . Core 3 | . . . . 12 1 . . . . . . . . . 1 . 4 2 Reactor 2 | . . . . . . . . 6 6 5 5 5 5 5 4 7 3 2 Treads 5 | . . 21 11 7 . . . . . . . . . . . . . . Leg 13 | . . . . 9 25 25 25 25 25 19 15 15 15 15 18 16 14 15 Wheel 4 | . 28 5 16 11 . . . . . . . . . . . . . 2 Device 15 | . . 10 14 1 24 32 25 25 24 15 24 22 25 24 18 21 15 15 Storage 8 | . 14 9 14 14 6 6 6 6 6 5 5 5 5 5 4 6 8 6 Processor 6 | . . . . 7 5 6 11 12 12 10 10 10 10 10 9 7 9 7 Hackware 1 | . . . . . . . . . . 8 . . . . 8 7 . . Protection 2 | . 11 5 . 1 5 . . . . 2 5 7 5 5 1 . 3 2 Energy Gun 3 | . . . . 5 4 . . . . . 4 5 . 4 7 8 2 2 Energy Cannon 3 | . . 5 14 1 1 5 6 . 6 5 5 5 . 5 1 1 1 . Ballistic Gun 2 | . 14 11 . . . . . . . . . . . . . . 3 2 Launcher 1 | . . 1 . . . . 6 . 6 5 . . . . . . . . Special Weapon 3 | . . 4 2 11 . . . . . . . . 3 . . . . . Impact Weapon 1 | . . 1 11 1 1 . . . . . . . . . . . . . Slashing Weapon 3 | . . 1 . 5 4 6 6 6 6 5 5 5 5 5 3 . . . Peak Build Rating 177 | 5 7 19 21 31 76 83 88 88 89 117 117 116 116 119 133 158 177 168 Average Rating 70 | 4 6 13 18 22 66 77 84 79 88 96 115 114 106 116 128 148 151 132 On Entrance 76 | . 5 7 18 20 30 72 83 88 88 89 117 114 116 115 118 133 75 168 Avg Prop Armor Cover (%) 14 | . . 15 17 14 . . . . . . . . . . . 9 3 5 Naked Turns . | . . . . . . . . . . . . . . . . . . . Heaviest Build 127 | 10 15 39 27 44 76 75 73 73 79 105 102 100 96 103 105 127 102 96 Greatest Support 144 | 20 20 40 40 40 76 76 76 76 76 110 107 107 107 107 123 123 144 144 Greatest Overweight (x) 3 | . . 2 1 3 1 . . . 1 1 . . . . . 1 1 2 Average Overweight (x) . | . . . . . . . . . . . . . . . . . . . Largest Inventory Capacity 20 | 8 8 8 10 15 15 15 15 15 15 20 20 20 20 20 20 20 20 20 Average Capacity 14 | 7 8 7 8 10 15 15 15 15 15 16 20 20 20 20 20 20 20 19 Most Carried 20 | 5 8 8 10 15 15 15 15 15 15 20 20 20 20 20 20 20 20 20 Average Carried 13 | 1 6 7 8 8 14 14 14 15 14 16 18 18 19 19 19 19 15 18 Final Capacity 20 | 8 8 8 10 15 15 15 15 15 15 20 20 20 20 20 20 20 20 5 Final Carried 20 | 5 8 8 10 15 15 14 15 15 15 20 18 20 20 20 20 14 20 5 Class Distribution -------------------- 36% | Mutant 12% | Commander-Mutant 11% | Commander-Assassin 11% | Derelict-Mutant 9% | Hacker-Assassin 7% | Assassin 3% | Hacker-Mutant Dominant Class ---------------- Mutant | -10/Materials Mutant | -10/Subcaves Mutant | -8/Recycling Commander-Mutant | -8/Scraptown Mutant | -6/Factory Mutant | -6/Lower Caves Assassin | -6/Lower Caves Assassin | -6/Data Miner Assassin | -5/Proximity Caves Hacker-Assassin | -5/Factory Commander-Assassin | -5/Upper Caves Commander-Mutant | -5/Upper Caves Commander-Assassin | -5/Zhirov Commander-Assassin | -4/Proximity Caves Hacker-Mutant | -4/Factory Hacker-Assassin | -3/Research Scavenger-Mutant | -3/Testing Mutant | -2/Research Resources | -11 -10 -10 -8 -8 -6 -6 -6 -6 -5 -5 -5 -5 -5 -4 -4 -3 -3 -2 ----------- Run | Yrd Mat Sub Rec Scr Fac Low Low Dat Pro Fac Upp Upp Zhi Pro Fac Res Tes Res Matter Collected 4620 | 96 79 919 145 335 426 261 168 . 183 310 241 46 . 198 417 348 342 106 Remotely . | . . . . . . . . . . . . . . . . . . . Salvage Created 6428 | 10 12 434 779 523 863 125 125 . 28 476 136 . . . 1068 999 850 . Parts 294 | 4 1 34 12 35 37 8 3 . 5 19 8 . . . 37 41 50 . Haulers Intercepted 6 | . . . . . 2 . . . . 2 . . . . 2 . . . Recyclers Shooed 10 | . 1 . 3 . 2 . . . . 1 . . . . 2 . 1 . Parts Field Recycled . | . . . . . . . . . . . . . . . . . . . Retrieved Matter . | . . . . . . . . . . . . . . . . . . . Parts Self-Destructed 85 | . . 22 . . . 10 14 . 13 . 13 4 . 9 . . . . Prevented 57 | . . . . . . . 13 . 13 . 7 10 . 14 . . . . Parts Restored . | . . . . . . . . . . . . . . . . . . . Kills | -11 -10 -10 -8 -8 -6 -6 -6 -6 -5 -5 -5 -5 -5 -4 -4 -3 -3 -2 ------- Run | Yrd Mat Sub Rec Scr Fac Low Low Dat Pro Fac Upp Upp Zhi Pro Fac Res Tes Res Combat Hostiles Destroyed 74 | . . 12 . . 10 5 2 . 3 5 . . . . 14 13 8 2 Melee 20 | . . 1 . . 7 . . . . . . . . . . 8 4 . Guns 13 | . . 5 . . 1 . . . . . . . . . 3 2 2 . Cannons 12 | . . 2 . . 2 3 1 . . 1 . . . . 2 1 . . AOE 21 | . . 4 . . . 2 . . 3 4 . . . . 6 . . 2 Classes Destroyed 20 | 1 1 6 1 2 6 . . . . . 1 . . . 1 . 1 . Worker 6 | . 1 . . . . . . . . 2 . . . . 1 1 1 . Builder 7 | . . . . . 2 . . . . 1 . . . . 2 . 2 . Tunneler 1 | 1 . . . . . . . . . . . . . . . . . . Hauler 6 | . . . . . 2 . . . . 2 . . . . 2 . . . Recycler 14 | . . . 11 . 1 . . . . 1 . . . . . . 1 . Turret 2 | . . 2 . . . . . . . . . . . . . . . . Watcher 2 | . . . . . 1 . . . . . . . . . 1 . . . Swarmer 15 | . . 4 . 1 . 3 . . 3 4 . . . . . . . . Grunt 13 | . . 1 . 2 3 . 2 . . . . . . . . 3 . 2 Brawler 1 | . . . . . . . . . . . . . . . 1 . . . Duelist 1 | . . . . 1 . . . . . . . . . . . . . . Researcher 2 | . . . . . . . . . . . . . . . . . 2 . Sentry 4 | . . . . . 1 . . . . . . . . . 1 2 . . Demolisher 2 | . . . . 2 . . . . . . . . . . . . . . Hunter 17 | . . . . . 2 . . . . . . . . . 10 3 2 . Programmer 18 | . . . . . 4 . . . . 1 . . . . 2 5 6 . Artisan 3 | . . 3 . . . . . . . . . . . . . . . . Subdweller 13 | . . 7 . 6 . . . . . . . . . . . . . . Federalist 1 | . . 1 . . . . . . . . . . . . . . . . Scrapoid 1 | . . . . . . . . . . . 1 . . . . . . . Thug 1 | . . . . . . 1 . . . . . . . . . . . . Butcher 1 | . . . . . . 1 . . . . . . . . . . . . Wizard 1 | . . . . . . . . . . . 1 . . . . . . . Best Kill Streak 8 | 1 1 4 3 . 3 3 2 . 3 5 . . . . 8 3 4 2 Combat Bots Only 7 | . . 4 . . 2 3 2 . 3 4 . . . . 7 2 2 2 Max Kills in Single Turn 4 | 1 1 2 1 1 1 2 1 . 3 4 1 . . . 2 1 1 2 Gunslinging . | . . . . . . . . . . . . . . . . . . . Exploded 4 | . . 2 . . . 2 . . 3 4 . . . . 1 . . 2 Melee 1 | . . 1 . . 1 . . . . . . . . . . 1 1 . Uniques/NPCs Destroyed . | . . . . . . . . . . . . . . . . . . . Combat | -11 -10 -10 -8 -8 -6 -6 -6 -6 -5 -5 -5 -5 -5 -4 -4 -3 -3 -2 -------- Run | Yrd Mat Sub Rec Scr Fac Low Low Dat Pro Fac Upp Upp Zhi Pro Fac Res Tes Res Hostile Shots Fired 1483 | . 2 112 . . 243 12 72 . 2 12 . . . 2 106 398 194 328 Missed 503 | . 1 35 . . 83 5 32 . . 6 . . . 1 40 124 61 115 Hits 980 | . 1 77 . . 160 7 40 . 2 6 . . . 1 66 274 133 213 Melee 1 | . . . . . 1 . . . . . . . . . . . . . Projectile 979 | . 1 77 . . 159 7 40 . 2 6 . . . 1 66 274 133 213 AOE 2 | . . 1 . . . . . . . 1 . . . . . . . . Critical Strikes 55 | . . 1 . . 5 . 2 . . . . . . . 5 17 12 13 Actively Blocked 2 | . . . . . . . . . . . . . . . 2 . . . Part Disruptions 7 | . . . . . . . . . . 1 . . . . 1 2 3 . Damage Taken 15192 | . 10 1136 . . 1137 69 482 . 36 201 31 . . 12 589 4458 2596 4435 Core 2445 | . 10 213 . . 116 . 18 . . 30 . . . . 46 422 138 1452 Absorbed by Shields 2897 | . . . . . 822 71 167 . 38 211 32 . . 13 574 751 44 174 Redirected to Shielding 106 | . . . . . . . . . . 38 . . . . 68 . . . Ignored by Resistances 998 | . . 5 . . 119 . . . . . . . . . 242 495 137 . Regen/Repaired (Parts) 1220 | . . . . . . . . . . 940 . . . . 79 . 23 178 Core Remaining (%) 72 | 100 . . . 10 . . . . 84 . . . . 97 96 . 47 . Volleys Fired 375 | 6 3 85 16 47 43 13 11 . 4 15 8 . 1 2 45 15 59 2 Largest 3 | 1 1 2 1 1 2 1 1 . 1 1 2 . 1 1 2 3 2 1 Hottest 218 | 20 20 160 80 30 160 43 43 . 43 43 54 . . 30 129 218 118 80 Shots Fired 445 | 6 3 104 16 47 45 13 12 . 4 15 14 1 1 2 64 30 66 2 Gun 227 | 6 3 45 . 40 12 . . . . . 4 1 . . 36 18 62 . Cannon 133 | . . 28 3 . 32 6 9 . 3 10 9 . . 2 19 12 . . Launcher 48 | . . 15 . . 1 7 3 . 1 5 1 . . . 9 . 4 2 Special 37 | . . 16 13 7 . . . . . . . . 1 . . . . . Kinetic 92 | 6 3 34 . . . . . . . . . . . . . . 49 . Thermal 256 | . . 55 3 40 44 6 9 . 3 10 13 1 . 2 41 20 9 . Explosive 43 | . . 15 . . 1 7 3 . 1 5 1 . . . 9 . . 1 Electromagnetic 33 | . . . . . . . . . . . . . . . 14 10 8 1 Robot Hit Streak 21 | 1 1 21 7 12 12 4 7 . . 5 6 . 1 . 11 9 4 5 Robot Miss Streak 6 | 2 1 3 1 2 3 1 1 . 2 1 3 1 . . 3 2 6 1 Penetration Max 1 | . . . . . . . . . . . . . . . . . 1 . Secondary Targets . | . . . . . . . . . . . . . . . . . . . Shots Hit Robots 401 | 2 2 53 27 57 65 6 3 . . 21 6 . 1 . 48 59 50 1 Core Hits 212 | 1 1 32 2 19 22 7 3 . 6 15 6 . . . 35 21 25 17 Critical Kills 4 | . . . 1 . . . 1 . . . . . . . 1 . 1 . Critical Parts Destroyed 5 | . . . 2 . 1 . . . . . . . . . . . 2 . Critical Strikes 38 | . . . 3 . 12 . 1 . . 1 . . . . 6 9 6 . Burn 6 | . . . . . . . . . . . . . . . 3 3 . . Meltdown 2 | . . . . . . . 1 . . . . . . . 1 . . . Destroy 3 | . . . . . . . . . . . . . . . . . 3 . Smash 4 | . . . 3 . 1 . . . . . . . . . . . . . Sever 14 | . . . . . 11 . . . . 1 . . . . 2 . . . Impale 9 | . . . . . . . . . . . . . . . . 6 3 . Melee Attacks 335 | . . 27 17 19 82 2 17 . . 39 5 . . 3 18 81 25 . Impact 29 | . . . 17 . 12 . . . . . . . . . . . . . Slashing 177 | . . 5 . 19 70 2 17 . . 39 5 . . 3 17 . . . Piercing 129 | . . 22 . . . . . . . . . . . . 1 81 25 . Sneak Attacks 51 | . . 3 10 19 8 . . . . 5 . . . . 3 1 2 . Combat Hostiles . | . . . . . . . . . . . . . . . . . . . Follow-up Attacks 2 | . . . . . . . . . . . . . . . . 2 . . Damage Inflicted 19374 | 21 23 1222 1260 1640 2674 427 403 . 137 1717 667 . . . 2918 2389 2228 1648 Guns 3478 | 21 23 417 . 270 276 . . . . . 81 . . . 645 347 1398 . Cannons 1983 | . . 190 84 . 447 162 84 . . 257 120 . . . 438 201 . . Explosions 5745 | . . 349 . . . 265 319 . 137 795 466 . . . 1466 . 300 1648 Melee 8131 | . . 242 1176 1370 1951 . . . . 665 . . . . 369 1828 530 . Ramming 13 | . . . . . . . . . . . . . . . . 13 . . Kinetic 1537 | 21 23 329 . . . . . . . . . . . . . . 1164 . Thermal 3426 | . . 302 84 270 723 162 84 . . 257 201 . . . 717 347 230 49 Explosive 5017 | . . 349 . . . 265 319 . 137 795 466 . . . 1466 . . 1220 Electromagnetic 1250 | . . . . . . . . . . . . . . . 366 201 304 379 Impact 1282 | . . . 1176 . 106 . . . . . . . . . . . . . Slashing 4322 | . . 73 . 1370 1845 . . . . 665 . . . . 369 . . . Piercing 2527 | . . 169 . . . . . . . . . . . . . 1828 530 . Highest Corruption 45 | . . . . . 2 2 2 2 2 7 7 7 7 17 . 20 45 2 Average Corruption 7 | . . . . . 1 2 2 2 2 4 7 7 7 9 . 7 29 1 Corruption Purged . | . . . . . . . . . . . . . . . . . . . Corruption Blocked . | . . . . . . . . . . . . . . . . . . . Effects 273 | . . . . . 10 9 18 3 16 16 58 21 8 20 . 17 76 1 Message Errors 61 | . . . . . 1 3 4 1 2 2 16 8 2 5 . 3 14 . Matter Fused 51 | . . . . . 2 1 3 1 1 6 8 3 3 6 . 8 8 1 Heat Flow Errors 34 | . . . . . 3 3 1 1 2 3 7 3 1 2 . 2 6 . Energy Discharges 35 | . . . . . 1 . 3 . 5 3 8 2 . 3 . 2 8 . Parts Rejected 2 | . . . . . . . . . . . . . . . . . 2 . Parts Fused 5 | . . . . . . . . . 3 . . . . . . . 2 . Data Loss (minor) 37 | . . . . . 2 1 3 . 2 . 8 2 2 3 . 1 13 . Data Loss (major) 13 | . . . . . 1 . 1 . 1 1 4 2 . 1 . . 2 . Misfires 14 | . . . . . . . 1 . . . 4 1 . . . 1 7 . Alerts 6 | . . . . . . 1 2 . . 1 1 . . . . . 1 . Misdirections 6 | . . . . . . . . . . . . . . . . . 6 . Weapon Failures 9 | . . . . . . . . . . . 2 . . . . . 7 . Overload Shots . | . . . . . . . . . . . . . . . . . . . Overflow Damage 1893 | . . 18 647 12 329 . 12 . . 175 . . . . 152 68 72 408 Projectiles 88 | . . . . . 29 . . . . 25 . . . . 34 . . . Explosions 481 | . . 18 . . . . 12 . . . . . . . 43 . . 408 Melee 1324 | . . . 647 12 300 . . . . 150 . . . . 75 68 72 . Knockbacks 5 | . . . 5 . . . . . . . . . . . . . . . Impact 5 | . . . 5 . . . . . . . . . . . . . . . Kinetic . | . . . . . . . . . . . . . . . . . . . Secondary . | . . . . . . . . . . . . . . . . . . . Self-Inflicted Damage 351 | . . 6 . . . 32 44 . . 76 52 . . . . . 34 107 Shots 12 | . . 1 . . . 1 1 . . 1 1 . . . . . 3 4 Rammed . | . . . . . . . . . . . . . . . . . . . Targets Rammed 1 | . . . . . . . . . . . . . . . . 1 . . Kicked 1 | . . . . . . . . . . . . . . . . 1 . . Crushed . | . . . . . . . . . . . . . . . . . . . Highest Temperature 299 | . . 299 60 73 239 210 86 78 237 266 252 253 184 182 . 196 207 63 Average Temperature 83 | . . 88 27 37 64 94 44 58 105 126 113 121 124 108 . 61 95 45 Received Heat Transfer 2246 | . . 707 . . 221 . 149 . 4 11 . . . 4 24 345 131 650 Siege Activations . | . . . . . . . . . . . . . . . . . . . Martial Activations . | . . . . . . . . . . . . . . . . . . . Shielding Activations . | . . . . . . . . . . . . . . . . . . . Robots Disrupted 1 | . . . . . . . . . . . . . . . . . 1 . Combat Hostiles . | . . . . . . . . . . . . . . . . . . . Robots Corrupted 10 | . . . 5 . 1 . . . . . . . . . 1 1 2 . Combat Hostiles 4 | . . . . . . . . . . . . . . . 1 1 2 . Parts Fried 18 | . . . 7 . 2 . . . . . . . . . 4 2 3 . Impact Corruptions 20 | . . . 19 . 1 . . . . . . . . . . . . . Robots Melted 4 | . . . . . . . 1 . . . . . . . 2 1 . . Combat Hostiles 4 | . . . . . . . 1 . . . . . . . 2 1 . . Parts Melted 20 | . . 2 . . 1 . 3 . . . . . . . 8 6 . . Heat Transferred 6164 | . . 559 111 775 1107 222 111 . . 296 273 . . . 1674 801 185 50 Parts Sabotaged . | . . . . . . . . . . . . . . . . . . . Parts Stolen . | . . . . . . . . . . . . . . . . . . . Parts Stripped . | . . . . . . . . . . . . . . . . . . . Power Chain Reactions 1 | . . . . . . . . . . . . . . . . . . 1 Alert | -11 -10 -10 -8 -8 -6 -6 -6 -6 -5 -5 -5 -5 -5 -4 -4 -3 -3 -2 ------- Run | Yrd Mat Sub Rec Scr Fac Low Low Dat Pro Fac Upp Upp Zhi Pro Fac Res Tes Res Maximum Alert Level 3 | . . . . . 2 . . . . 1 . . . . 3 3 1 . Low Security (%) 47 | 100 100 . 100 . 69 . . . . 45 . . . . 43 . 3 100 Level 1 26 | . . . . . 19 . . . . 54 . . . . 2 . 96 . Level 2 22 | . . . . . 10 . . . . . . . . . 35 92 . . Level 3 3 | . . . . . . . . . . . . . . . 18 7 . . Level 4 . | . . . . . . . . . . . . . . . . . . . Level 5 . | . . . . . . . . . . . . . . . . . . . High Security . | . . . . . . . . . . . . . . . . . . . Max Security . | . . . . . . . . . . . . . . . . . . . Peak Influence 1097 | 5 30 . 104 . 437 . . . . 396 . . . . 1097 734 352 199 Initial 556 | . 3 . . . . . . . . 306 . . . . 111 556 342 181 Average 258 | 1 5 . 30 . 121 . . . . 209 . . . . 453 561 282 113 Influence Increases 8235 | 5 35 217 408 . 847 279 435 . 333 1390 415 151 . 386 1686 917 513 218 Destroy 0b10 Robot/C 3660 | . . 160 160 . 340 180 300 . 180 380 180 60 . 180 860 440 200 40 Destroy 0b10 Robot/NC 300 | 5 5 . 55 . 35 . . . 10 55 . . . . 100 15 20 . Destroy Leader 768 | . . 10 . . 116 30 40 . 30 118 30 20 . 20 202 112 40 . Allied During Kill 1271 | . . 2 86 . 47 54 65 . 113 144 190 71 . 186 232 81 . . Successful Hack 162 | . . . 16 . 14 . . . . 46 . . . . 18 12 28 28 Select Force Hacks 120 | . 30 . 90 . . . . . . . . . . . . . . . Disable Machine 345 | . . . . . 45 . . . . 60 . . . . 90 . 135 15 Destroy Structure 724 | . . . 1 . 55 . . . . 272 . . . . 184 122 90 . Advance Influence 300 | . . . . . . . . . . 300 . . . . . . . . Partial Spotted 45 | . . . . . 45 . . . . . . . . . . . . . Lose Combat Pursuer 540 | . . 45 . . 150 15 30 . . 15 15 . . . . 135 . 135 Influence Decreases 8168 | . 40 217 408 . 421 520 620 . 322 1005 811 151 . 209 802 1368 800 474 Entered New Map 1329 | . 2 . . . . 158 36 . . 5 147 . . . 66 505 268 142 Time Decay 5236 | . 38 197 318 . 351 342 465 . 282 620 584 111 . 189 486 583 482 188 Lost Part 474 | . . 20 . . 10 . 20 . . . . . . . 10 220 50 144 Lost Ally 829 | . . . 90 . 60 20 99 . 40 80 80 40 . 20 240 60 . . Purge Threat 300 | . . . . . . . . . . 300 . . . . . . . . Squads Dispatched 47 | . 2 . . . 11 . . . . 9 . . . . 11 7 4 3 Investigation 12 | . 1 . . . 4 . . . . 4 . . . . 1 . . 2 Extermination 16 | . . . . . 5 . . . . 3 . . . . 2 3 2 1 Reinforcement 10 | . 1 . . . 2 . . . . 2 . . . . 1 2 2 . Assault 4 | . . . . . . . . . . . . . . . 2 2 . . Garrison 5 | . . . . . . . . . . . . . . . 5 . . . Intercept . | . . . . . . . . . . . . . . . . . . . Searches Triggered . | . . . . . . . . . . . . . . . . . . . Data Miner Redirects 3 | . . . . . . . . . . 1 . . . . 1 1 . . Construction Impeded 2 | . . . . . . . . . . . . . . . 1 . 1 . Haulers Reinforced 2 | . . . . . 1 . . . . 1 . . . . . . . . Active Scanning Responses . | . . . . . . . . . . . . . . . . . . . Cargo Convoy Interrupts . | . . . . . . . . . . . . . . . . . . . Stealth | -11 -10 -10 -8 -8 -6 -6 -6 -6 -5 -5 -5 -5 -5 -4 -4 -3 -3 -2 --------- Run | Yrd Mat Sub Rec Scr Fac Low Low Dat Pro Fac Upp Upp Zhi Pro Fac Res Tes Res Distress Signals 11 | . . . . . 3 . . . . 1 . . . . 3 3 . 1 Communications Jammed 156 | . . . . . 4 . . . . . . . . . 18 125 9 . Distress Signals 156 | . . . . . 4 . . . . . . . . . 18 125 9 . Times Spotted 244 | . 4 28 . . 26 13 13 . 6 14 6 . . 6 33 52 19 24 Peak Tracking Total 16 | . 3 6 . . 5 4 6 . 4 2 5 . . 5 5 8 5 16 Tactical Retreats 23 | . . 1 . . 7 1 2 . . 1 1 . . . . 7 . 3 Traps | -11 -10 -10 -8 -8 -6 -6 -6 -6 -5 -5 -5 -5 -5 -4 -4 -3 -3 -2 ------- Run | Yrd Mat Sub Rec Scr Fac Low Low Dat Pro Fac Upp Upp Zhi Pro Fac Res Tes Res Traps Triggered 7 | . . 1 . . 1 . . . . 2 . . . . . 1 2 . Indirectly . | . . . . . . . . . . . . . . . . . . . Trap Hack Attempts . | . . . . . . . . . . . . . . . . . . . Triggered . | . . . . . . . . . . . . . . . . . . . Disarmed . | . . . . . . . . . . . . . . . . . . . Reprogrammed . | . . . . . . . . . . . . . . . . . . . Reused . | . . . . . . . . . . . . . . . . . . . Traps Extracted . | . . . . . . . . . . . . . . . . . . . Installed . | . . . . . . . . . . . . . . . . . . . Triggered . | . . . . . . . . . . . . . . . . . . . Machines | -11 -10 -10 -8 -8 -6 -6 -6 -6 -5 -5 -5 -5 -5 -4 -4 -3 -3 -2 ---------- Run | Yrd Mat Sub Rec Scr Fac Low Low Dat Pro Fac Upp Upp Zhi Pro Fac Res Tes Res Machines Disabled 26 | . . 3 . . 3 . . . . 4 . . . . 6 . 9 1 Max in Single Turn 2 | . . 2 . . 1 . . . . 1 . . . . . . 1 1 Garrison Access 5 | . . . . . . . . . . 2 . . . . 2 1 . . Machines Repaired . | . . . . . . . . . . . . . . . . . . . Machines Dismantled . | . . . . . . . . . . . . . . . . . . . Machines Sabotaged . | . . . . . . . . . . . . . . . . . . . Overloaded Fab Kills . | . . . . . . . . . . . . . . . . . . . Hacking | -11 -10 -10 -8 -8 -6 -6 -6 -6 -5 -5 -5 -5 -5 -4 -4 -3 -3 -2 --------- Run | Yrd Mat Sub Rec Scr Fac Low Low Dat Pro Fac Upp Upp Zhi Pro Fac Res Tes Res Machines Accessed 75 | . 1 3 8 4 13 . 2 4 . 14 . . 4 . 8 6 5 3 Terminals 23 | . . . 4 . 4 . . . . 5 . . . . 3 4 3 . Fabricators 4 | . . . . . 2 . . . . . . . . . 1 . 1 . Repair Stations 7 | . . . . . 1 . . . . 3 . . . . 1 . 1 1 Recycling Units 14 | . 1 . 4 . 4 . . . . 3 . . . . 1 . . 1 Scanalyzers 4 | . . . . . 2 . . . . 1 . . . . . 1 . . Garrison Access 6 | . . . . . . . . . . 2 . . . . 2 1 . 1 Total Hacks 216 | . 1 5 19 22 25 . 4 31 . 41 . . 17 . 18 16 8 9 Successful 150 | . 1 5 15 22 8 . 4 31 . 27 . . 17 . 8 7 2 3 Failed 65 | . . . 4 . 16 . . . . 14 . . . . 10 9 6 6 Catastrophic 20 | . . . . . 6 . . . . 3 . . . . 1 5 3 2 Database Lockouts 1 | . . . . . 1 . . . . . . . . . . . . . Manual 48 | . 1 . 12 . 14 . . . . 13 . . . . 2 3 2 1 Terminals 59 | . . . 8 . 4 . . . . 22 . . . . 8 12 5 . Fabricators 10 | . . . . . 6 . . . . . . . . . 3 . 1 . Repair Stations 19 | . . . . . 1 . . . . 12 . . . . 2 . 2 2 Recycling Units 30 | . 1 . 11 . 10 . . . . 3 . . . . 1 . . 4 Scanalyzers 8 | . . . . . 4 . . . . 2 . . . . . 2 . . Garrison Access 11 | . . . . . . . . . . 2 . . . . 4 2 . 3 Terminal Hacks 94 | . . 5 1 22 . . 4 31 . 9 . . 17 . 2 3 . . Record 43 | . . 3 . 21 . . 3 11 . . . . 5 . . . . . Part Schematic 16 | . . . . . . . . 12 . . . . 4 . . . . . Robot Schematic 5 | . . . . . . . . 5 . . . . . . . . . . Robot Analysis 4 | . . . . . . . . . . . . . 4 . . . . . Prototype ID Bank 9 | . . . . . . . . 3 . 2 . . 4 . . . . . Open Door 2 | . . 1 . . . . 1 . . . . . . . . . . . Branch Access Points 3 | . . . . . . . . . . 1 . . . . 1 1 . . Terminal Index 1 | . . . 1 . . . . . . . . . . . . . . . Unreport Threat 1 | . . . . . . . . . . 1 . . . . . . . . Locate Traps 2 | . . . . . . . . . . 2 . . . . . . . . Recall Investigation 1 | . . . . . . . . . . 1 . . . . . . . . Recall Extermination 1 | . . . . . . . . . . . . . . . . 1 . . Hauler Manifests 1 | . . . . . . . . . . 1 . . . . . . . . Zone Layout 3 | . . . . . . . . . . 1 . . . . 1 1 . . Proto ID Catalog 2 | . . 1 . 1 . . . . . . . . . . . . . . Fabricator Hacks 2 | . . . . . 1 . . . . . . . . . 1 . . . Network Status 2 | . . . . . 1 . . . . . . . . . 1 . . . Repair Station Hacks 15 | . . . . . . . . . . 9 . . . . 2 . 2 2 Scan Component 8 | . . . . . . . . . . 5 . . . . 1 . 1 1 Repair 7 | . . . . . . . . . . 4 . . . . 1 . 1 1 Recycling Unit Hacks 8 | . . . 6 . 1 . . . . . . . . . . . . 1 Report Inventory 6 | . . . 4 . 1 . . . . . . . . . . . . 1 Retrieve Components 2 | . . . 2 . . . . . . . . . . . . . . . Scanalyzer 5 | . . . . . 2 . . . . 1 . . . . . 2 . . Retrieve Study 5 | . . . . . 2 . . . . 1 . . . . . 2 . . Garrison Access Hacks 5 | . . . . . . . . . . 2 . . . . 2 1 . . Seal Access 5 | . . . . . . . . . . 2 . . . . 2 1 . . Unauthorized Hacks 21 | . 1 . 8 . 4 . . . . 6 . . . . 1 1 . . Terminals 8 | . . . 4 . . . . . . 3 . . . . . 1 . . Assimilate 1 | . . . . . . . . . . 1 . . . . . . . . Botnet 3 | . . . 1 . . . . . . 1 . . . . . 1 . . Skim 4 | . . . 3 . . . . . . 1 . . . . . . . . Fabricators 1 | . . . . . 1 . . . . . . . . . . . . . Fabnet 1 | . . . . . 1 . . . . . . . . . . . . . Repair Stations . | . . . . . . . . . . . . . . . . . . . Recycling Units 12 | . 1 . 4 . 3 . . . . 3 . . . . 1 . . . Reject 1 | . . . 1 . . . . . . . . . . . . . . . Tunnel 4 | . 1 . 3 . . . . . . . . . . . . . . . Fedlink 5 | . . . . . 2 . . . . 2 . . . . 1 . . . Scrapoids 2 | . . . . . 1 . . . . 1 . . . . . . . . Scanalyzers . | . . . . . . . . . . . . . . . . . . . Garrison Access . | . . . . . . . . . . . . . . . . . . . Data Cores Recovered . | . . . . . . . . . . . . . . . . . . . Used . | . . . . . . . . . . . . . . . . . . . Hacking Detections 41 | . . . 5 . 11 . . . . 7 . . . . 6 5 5 2 Full Trace Events 3 | . . . . . 1 . . . . . . . . . . . . 2 Feedback Events . | . . . . . . . . . . . . . . . . . . . Feedback Blocked . | . . . . . . . . . . . . . . . . . . . Robot Schematics Acquired 7 | . . . . . . . . 5 . . . . . . . . 2 . Robots Built . | . . . . . . . . . . . . . . . . . . . Authchips . | . . . . . . . . . . . . . . . . . . . Time . | . . . . . . . . . . . . . . . . . . . Total Robot Build Rating . | . . . . . . . . . . . . . . . . . . . Part Schematics Acquired 18 | . . . . . . . . 12 . . . . 4 . . . 2 . Parts Built . | . . . . . . . . . . . . . . . . . . . Authchips . | . . . . . . . . . . . . . . . . . . . Time . | . . . . . . . . . . . . . . . . . . . Total Part Build Rating . | . . . . . . . . . . . . . . . . . . . Part Studies Acquired 5 | . . . . . 2 . . . . 1 . . . . . 2 . . Parts Repaired 7 | . . . . . . . . . . 4 . . . . 1 . 1 1 Time 354 | . . . . . . . . . . 247 . . . . 25 . 28 54 Parts Recycled . | . . . . . . . . . . . . . . . . . . . Recycled Matter . | . . . . . . . . . . . . . . . . . . . Retrieved Matter . | . . . . . . . . . . . . . . . . . . . Retrieved Components 10 | . . . 10 . . . . . . . . . . . . . . . Parts Scanalyzed . | . . . . . . . . . . . . . . . . . . . Part Schematics Acquired . | . . . . . . . . . . . . . . . . . . . Parts Damaged . | . . . . . . . . . . . . . . . . . . . Bothacking | -11 -10 -10 -8 -8 -6 -6 -6 -6 -5 -5 -5 -5 -5 -4 -4 -3 -3 -2 ------------ Run | Yrd Mat Sub Rec Scr Fac Low Low Dat Pro Fac Upp Upp Zhi Pro Fac Res Tes Res Used RIF Installer . | . . . . . . . . . . . . . . . . . . . Robots Hacked 5 | . . . . 2 . . . . . 1 1 . . . 1 . . . Non-combat . | . . . . . . . . . . . . . . . . . . . Combat 5 | . . . . 2 . . . . . 1 1 . . . 1 . . . Robot Hacks Applied 2 | . . . . 2 . . . . . . . . . . . . . . parse_system 2 | . . . . 2 . . . . . . . . . . . . . . Relay Couplers Released . | . . . . . . . . . . . . . . . . . . . Fabnet Peak Effective % 3 | . . . . . . . . . 3 3 3 3 3 1 1 . . . Autooverrided 3 | . . . . . . . . . . 1 1 . . . 1 . . . Robots Rewired 6 | . . . 6 . . . . . . . . . . . . . . . Allies Hacked . | . . . . . . . . . . . . . . . . . . . Hacks Repelled . | . . . . . . . . . . . . . . . . . . . Allies | -11 -10 -10 -8 -8 -6 -6 -6 -6 -5 -5 -5 -5 -5 -4 -4 -3 -3 -2 -------- Run | Yrd Mat Sub Rec Scr Fac Low Low Dat Pro Fac Upp Upp Zhi Pro Fac Res Tes Res Total Allies 86 | . . 16 6 1 5 . 7 . 6 16 8 3 . 1 11 6 . . Largest Group 13 | . . 13 12 12 6 3 5 3 5 9 10 9 9 9 5 4 . . Highest-Rated Group 636 | . . 248 237 237 236 152 409 247 409 558 625 636 636 636 407 324 . . Highest-Rated Ally 121 | . . 20 34 96 96 96 96 85 85 85 121 121 121 121 121 81 . . Initial UFD Resources 69 | . . . . . 23 34 34 34 37 37 48 48 48 52 52 66 66 69 Total Orders 72 | . . . . 3 7 10 6 . 2 22 6 . 2 4 10 . . . STAY 39 | . . . . 2 4 6 3 . 1 13 3 . 1 2 4 . . . FOLLOW 33 | . . . . 1 3 4 3 . 1 9 3 . 1 2 6 . . . Ally Attacks 633 | . . 26 25 . 75 26 36 . 42 72 41 17 . 36 175 62 . . Total Damage 19922 | . . 388 413 . 1105 1450 2183 . 1301 2563 844 357 . 1240 5615 2463 . . Kills 151 | . . 2 8 . 8 8 14 . 8 23 11 3 . 9 45 12 . . Allies Corrupted 1 | . . . . . . . . . . 1 . . . . . . . . Allies Melted 1 | . . . . . . . . . . . . . . . 1 . . . Intel | -11 -10 -10 -8 -8 -6 -6 -6 -6 -5 -5 -5 -5 -5 -4 -4 -3 -3 -2 ------- Run | Yrd Mat Sub Rec Scr Fac Low Low Dat Pro Fac Upp Upp Zhi Pro Fac Res Tes Res Active Infowar (turns) 17106 | . . 1114 . . 2626 773 1396 126 835 2082 1952 593 348 641 1276 1805 1255 284 Optics 10909 | . . . . . . . 1298 126 835 2082 1952 593 348 641 1276 1758 . . Sensors 13207 | . . . . . 2206 773 1333 125 564 1333 1924 262 348 632 556 1653 1214 284 Seismic 1114 | . . 1114 . . . . . . . . . . . . . . . . Jamming 11541 | . . . . . 2466 773 1396 126 830 2077 . . . . 1148 1805 920 . Robot Analysis Total 4 | . . . . . . . . . . . . . 4 . . . . . Derelict Logs Recovered 12 | . . 2 . 5 . 2 . . . . 1 1 . 1 . . . . Drone Launches . | . . . . . . . . . . . . . . . . . . . Drone Recoveries . | . . . . . . . . . . . . . . . . . . . Exploration | -11 -10 -10 -8 -8 -6 -6 -6 -6 -5 -5 -5 -5 -5 -4 -4 -3 -3 -2 ------------- Run | Yrd Mat Sub Rec Scr Fac Low Low Dat Pro Fac Upp Upp Zhi Pro Fac Res Tes Res Turns Passed 27488 | 57 221 4042 997 6009 2667 773 1396 126 835 2082 1952 593 348 641 1276 1805 1255 413 Spaces Moved 19758 | 44 248 2483 666 4839 1803 595 1072 98 599 1475 1545 484 269 486 860 1092 779 321 Core 24 | 8 . . . . . . . . . . . . . . . . . 16 Treads 1293 | . . 1258 1 34 . . . . . . . . . . . . . . Legs 12868 | . . 70 . 1386 1803 595 1072 98 599 1475 1545 484 269 486 860 1092 779 255 Wheels 5573 | 36 248 1155 665 3419 . . . . . . . . . . . . . 50 Hover . | . . . . . . . . . . . . . . . . . . . Flight . | . . . . . . . . . . . . . . . . . . . Fastest Speed 50 | 50 80 80 110 105 115 120 120 120 120 120 120 120 120 120 120 112 116 50 Average Speed 121 | 74 80 133 117 116 120 120 120 120 132 121 120 120 120 120 120 131 124 114 Slowest Speed 260 | 80 80 260 260 200 188 120 120 120 190 190 120 120 120 120 120 194 185 180 Overloaded Moves . | . . . . . . . . . . . . . . . . . . . Propulsion Burnouts . | . . . . . . . . . . . . . . . . . . . Robots Hopped . | . . . . . . . . . . . . . . . . . . . Potential Cave-ins 7 | . . 1 . . . . . . . . . . . . . 6 . . Cave-ins Triggered . | . . . . . . . . . . . . . . . . . . . Teleports 1 | . . . . . . . . . . . . . . . . 1 . . Exploration Rate (%) 57 | 3 62 96 77 91 27 55 91 76 78 32 80 73 61 74 22 28 62 8 Regions Visited 18 Branch Regions 12 Pre-discovered Areas 12 | . 1 . 3 2 . 1 1 1 . . . . 3 . . . . . Known Exits Taken 13 | . . . . . 1 1 1 1 1 1 1 1 1 1 1 1 1 . Unknown Exits Taken 5 | 1 1 1 1 1 . . . . . . . . . . . . . . Scrap Searched 28 | . . 9 . 6 . 1 3 . 1 . 1 2 . 5 . . . . Spaces Dug 147 | . . 13 . . 36 2 18 . 1 26 7 . . 4 10 24 6 . Terrain Destroyed 544 | . . 66 . . 62 98 71 . 20 77 25 . . 4 42 26 53 . Melee 131 | . . 9 . . 31 2 16 . . 26 5 . . 3 9 24 6 . Projectile 86 | . . 9 . . 15 . 3 . 3 1 2 . . 1 3 2 47 . AOE 327 | . . 48 . . 16 96 52 . 17 50 18 . . . 30 . . . Terrain Rammed . | . . . . . . . . . . . . . . . . . . . Walls Destroyed . | . . . . . . . . . . . . . . . . . . . Machines Disabled . | . . . . . . . . . . . . . . . . . . . Actions | -11 -10 -10 -8 -8 -6 -6 -6 -6 -5 -5 -5 -5 -5 -4 -4 -3 -3 -2 --------- Run | Yrd Mat Sub Rec Scr Fac Low Low Dat Pro Fac Upp Upp Zhi Pro Fac Res Tes Res Total 22235 | 59 266 3040 855 5151 2126 635 1143 106 637 1684 1626 496 296 535 1004 1267 942 367 Wait 1017 | . 12 344 136 96 101 12 26 . 20 111 15 6 3 27 43 19 22 24 Move 19740 | 43 247 2482 665 4838 1802 594 1071 97 598 1474 1544 483 268 485 859 1091 778 321 Hop . | . . . . . . . . . . . . . . . . . . . Pick Up 210 | 5 2 22 5 70 19 2 4 . 4 12 20 3 7 4 4 10 12 5 Fast Attach 67 | 5 1 9 . 2 6 1 1 4 . 4 . . 2 1 3 10 17 1 Attach 56 | . . 2 . 3 6 2 1 . . 2 . . 2 . 3 16 12 7 Detach 31 | . . 2 . 1 2 . . . . 2 . . 3 . 3 9 8 1 Swap 191 | . 1 35 8 13 37 6 8 1 7 16 14 2 2 8 21 10 2 . Drop 202 | . . 26 6 62 28 3 4 4 4 9 20 2 8 5 5 7 3 6 Fire 375 | 6 3 85 16 47 43 13 11 . 4 15 8 . 1 2 45 15 59 2 Melee 333 | . . 27 17 19 82 2 17 . . 39 5 . . 3 18 79 25 . Ram . | . . . . . . . . . . . . . . . . . . . Kick 1 | . . . . . . . . . . . . . . . . 1 . . Crush . | . . . . . . . . . . . . . . . . . . . Escape Stasis 3 | . . . . . . . . . . . . . . . . . 3 . Rewire 3 | . . . 2 . . . . . . . . . . . . . 1 . Trap . | . . . . . . . . . . . . . . . . . . . Miscellaneous 6 | . . 6 . . . . . . . . . . . . . . . . Route ------- -11/Scrapyard -10/Materials (discovered 3 exits: [*Mat] / [*Min] / *Sub) -10/Subcaves (discovered 3 exits: [*Mat x2] / *Rec) -8/Recycling (discovered 2 exits: *Fac / *Scr) -8/Scraptown (discovered 2 exits: *Fac x2) -6/Factory (discovered 2 exits: *Fac / *Low) -6/Lower Caves -6/Lower Caves -6/Data Miner -5/Proximity Caves -5/Factory (discovered 3 exits: *Fac / *Upp x2) -5/Upper Caves -5/Upper Caves (discovered 2 exits: *Fac / *Zhi) -5/Zhirov -4/Proximity Caves -4/Factory (discovered 6 exits: *Res x2 / *Upp x2 / Ext x2) -3/Research (discovered 4 exits: *Res / Arm / *Tes x2) -3/Testing -2/Research (discovered 1 exit: Qua) History --------- Turn | Location | Event 5 | -11/Scrapyard | Discovered new exit (range 16) 58 | -11/Scrapyard | Entered Materials 59 | -10/Materials | Met a group of wandering Federalists 59 | -10/Materials | Discovered new exit (range 16) 258 | -10/Materials | Discovered new exit (range 16) 275 | -10/Materials | Discovered new exit (range 5) 279 | -10/Materials | Entered Subcaves 280 | -10/Subcaves | Continued accompanying wandering Federalists (5) 280 | -10/Subcaves | Approached by a straggling Scientist 293 | -10/Subcaves | Learned Materials terminal intel 323 | -10/Subcaves | Build established: Mutant 357 | -10/Subcaves | Lost 5 allies 495 | -10/Subcaves | Visited 4L-MR0's lab 516 | -10/Subcaves | Found Prototype Power Core 523 | -10/Subcaves | Identified Meta Core 1685 | -10/Subcaves | Disturbed a concealed Subdweller 1726 | -10/Subcaves | Disturbed a concealed Subdweller 1944 | -10/Subcaves | Ambushed by Subdweller buried in earth 1988 | -10/Subcaves | Discovered new exit (range 11) 1993 | -10/Subcaves | Core integrity fell below 50% 2086 | -10/Subcaves | Ambushed by Subdweller buried in earth 2256 | -10/Subcaves | Discovered new exit (range 5) 2403 | -10/Subcaves | Build established: Subdweller-Mutant 2510 | -10/Subcaves | Visited triangular shrine 2521 | -10/Subcaves | Found Prototype Device 2521 | -10/Subcaves | Identified V3-11A's Pendant 2526 | -10/Subcaves | Befriended Subdweller 2724 | -10/Subcaves | Build established: Derelict-Mutant 2841 | -10/Subcaves | Befriended Subdweller 2851 | -10/Subcaves | Befriended Subdweller 2990 | -10/Subcaves | Visited Clippyterm 2993 | -10/Subcaves | Learned Research machine intel 3081 | -10/Subcaves | Befriended Subdweller 3145 | -10/Subcaves | Lost 3 allies 3161 | -10/Subcaves | Discovered new exit (range 5) 3211 | -10/Subcaves | Befriended Subdweller 3456 | -10/Subcaves | Befriended Subdweller 3459 | -10/Subcaves | Ambushed by angry Subdweller bent on revenge 3461 | -10/Subcaves | Befriended Subdweller 3480 | -10/Subcaves | Shifting Twisted Machinery released Scrap Shield 3495 | -10/Subcaves | Learned 2 Materials zone layouts 3531 | -10/Subcaves | Ambushed by angry Subdweller bent on revenge 3531 | -10/Subcaves | Befriended Subdweller 3564 | -10/Subcaves | Build established: Mutant 3661 | -10/Subcaves | Befriended Subdweller 3701 | -10/Subcaves | Befriended Subdweller 3701 | -10/Subcaves | Befriended Subdweller 3716 | -10/Subcaves | Befriended Subdweller 3716 | -10/Subcaves | Befriended Subdweller 3779 | -10/Subcaves | A Subdweller sparked back to life 3779 | -10/Subcaves | A Subdweller sparked back to life 3779 | -10/Subcaves | A Subdweller sparked back to life 3781 | -10/Subcaves | Befriended Subdweller 3781 | -10/Subcaves | Befriended Subdweller 3781 | -10/Subcaves | Befriended Subdweller 3857 | -10/Subcaves | Core integrity fell below 20% 4321 | -10/Subcaves | Entered Recycling 4321 | -8/Recycling | Accompanied by 12 allies 4322 | -8/Recycling | Met a Zionite searching for Scraptown 4555 | -8/Recycling | P-60 Hacker assimilated allied AY-U7J(R) 4586 | -8/Recycling | Found Cargo Legs 4591 | -8/Recycling | Lost 5 allies 5028 | -8/Recycling | Discovered new exit (range 9) 5236 | -8/Recycling | Scanned before Scraplab entrance 5253 | -8/Recycling | Entered Scraplab 5263 | -8/Recycling | Discovered new exit (range 3) 5318 | -8/Recycling | Entered Scraptown 5318 | -8/Scraptown | Accompanied by 12 allies 5455 | -8/Scraptown | Visited UFD Registry 5455 | -8/Scraptown | Registered with UFD as "Laserslasher" 5470 | -8/Scraptown | Visited Cave Peace 5483 | -8/Scraptown | Build established: Commander-Mutant 5511 | -8/Scraptown | Visited TADAMA 5525 | -8/Scraptown | Visited The Evicted 5583 | -8/Scraptown | Scanned Subdweller tech in exchange for log data 5586 | -8/Scraptown | Learned Research terminal intel 5587 | -8/Scraptown | Learned location of Quarantine (-2) 5588 | -8/Scraptown | Learned location of 1 exit from Research 5590 | -8/Scraptown | Learned location of Extension (-4) 5601 | -8/Scraptown | Discovered new exit (range 13) 5629 | -8/Scraptown | Guru changed UFD alias to "Megaslasher" 5791 | -8/Scraptown | Delivered V3-11A's Pendant to T0-NE2 in exchange for information 5961 | -8/Scraptown | Visited CPS Storage 5995 | -8/Scraptown | Visited Fellowship of the Rings 6035 | -8/Scraptown | Visited Junk Repository 6138 | -8/Scraptown | Visited Science Testing Area 6155 | -8/Scraptown | Visited DA-N13 Charitable Foundation 6170 | -8/Scraptown | Found DCF Scrap (32 items) 6200 | -8/Scraptown | Visited LU-1G1's Boring Crew 6243 | -8/Scraptown | Delivered Scrap Shield to a Scientist 6333 | -8/Scraptown | Visited Scrap Suit Storage 6351 | -8/Scraptown | Visited Observation Area 6386 | -8/Scraptown | Visited Botcube Research 6418 | -8/Scraptown | Visited Abandonware Association 6427 | -8/Scraptown | Learned abandonware demo "OVRCLOCK.EXE" 6444 | -8/Scraptown | Learned abandonware demo "SHUTEYE.EXE" 6444 | -8/Scraptown | Learned abandonware demo "TRNCOAT.EXE" 6480 | -8/Scraptown | Visited Chapter 10 6550 | -8/Scraptown | Visited Science Guys 7181 | -8/Scraptown | Visited Shadow of the Wyrm 7966 | -8/Scraptown | Murdered 6 allies 8281 | -8/Scraptown | Murdered 3 allies 8347 | -8/Scraptown | Attached CPS modules to Rogue 3a 8351 | -8/Scraptown | Attached CPS modules to Grenadier 3a 8356 | -8/Scraptown | Attached CPS modules to Grenadier 3b 8507 | -8/Scraptown | Found Lrg. Botcube 8736 | -8/Scraptown | Build established: Derelict-Mutant 10218 | -8/Scraptown | Lrg. Botcube activated 10256 | -8/Scraptown | Lrg. Botcube completed mutation into hovering form, armed with 1 gun, 3 launchers 10272 | -8/Scraptown | Attached CPS modules to Large Mutated Botcube 10566 | -8/Scraptown | Build established: Mutant 11179 | -8/Scraptown | Discovered new exit (range 3) 11327 | -8/Scraptown | Entered Factory 11327 | -6/Factory | Accompanied by 1 ally 11327 | -6/Factory | Evolved 8 slots: Power x1, Propulsion x2, Utility x5 11622 | -6/Factory | Build established: Derelict-Mutant 11846 | -6/Factory | Discovered new exit (range 12) 11867 | -6/Factory | Identified exit to Lower Caves 12022 | -6/Factory | Build established: Mutant 12308 | -6/Factory | Central database locked down 12910 | -6/Factory | Loaded intel: 8 recycling unit locations 13168 | -6/Factory | Scrapoids reinforcements arrived? 13550 | -6/Factory | Discovered new exit (range 16) 13994 | -6/Factory | Entered Lower Caves 13994 | -6/Lower Caves | Accompanied by 3 allies 13996 | -6/Lower Caves | UFD Scientist delivered a prototype 13998 | -6/Lower Caves | Found Prototype Protection 14038 | -6/Lower Caves | Spotted B-75 Beast 14045 | -6/Lower Caves | Allies destroyed B-75 Beast 14309 | -6/Lower Caves | Ambushed by wild Derelicts 14546 | -6/Lower Caves | Encountered a Warlord checkpoint 14715 | -6/Lower Caves | Found Alien Artifact 14715 | -6/Lower Caves | Identified Core Expander 14715 | -6/Lower Caves | Installed Core Expander, added new Weapon slot 14739 | -6/Lower Caves | Learned Factory security intel 14754 | -6/Lower Caves | Discovered new exit (range 10) 14764 | -6/Lower Caves | Identified exit to Lower Caves 14767 | -6/Lower Caves | Entered another Lower Caves area 14767 | -6/Lower Caves | Accompanied by 2 allies 14769 | -6/Lower Caves | Attracted the attention of an 0b10 checkpoint 14780 | -6/Lower Caves | Encountered a Warlord checkpoint 14841 | -6/Lower Caves | Prototype Device suddenly appears! 14843 | -6/Lower Caves | Found Prototype Device 14845 | -6/Lower Caves | Lost 5 allies 14946 | -6/Lower Caves | Entered an active Warlord outpost 15234 | -6/Lower Caves | Build established: Assassin 15409 | -6/Lower Caves | Identified Amulet of Y3-NDR 15484 | -6/Lower Caves | Joined by bewildered Wizard 15487 | -6/Lower Caves | Joined by bewildered Wizard 15487 | -6/Lower Caves | Joined by bewildered Wizard 15518 | -6/Lower Caves | Joined by bewildered Wizard 15583 | -6/Lower Caves | Discovered new exit (range 13) 15598 | -6/Lower Caves | Identified exit to Data Miner 15970 | -6/Lower Caves | Lost 4 allies 15972 | -6/Lower Caves | Joined by bewildered Wizard 15973 | -6/Lower Caves | Joined by bewildered Wizard 16163 | -6/Lower Caves | Entered Data Miner 16163 | -6/Data Miner | Accompanied by 3 allies 16165 | -6/Data Miner | Discovered new exit (range 6) 16188 | -6/Data Miner | Identified exit to Proximity Caves 16200 | -6/Data Miner | Met Data Miner 16236 | -6/Data Miner | Learned location of Section 7 (-2) 16236 | -6/Data Miner | Acquired the access code to Warlord's prototype stash 16255 | -6/Data Miner | Received God Mode back door access code from Data Miner 16289 | -6/Data Miner | Entered Proximity Caves 16289 | -5/Proximity Caves | Accompanied by 3 allies 16451 | -5/Proximity Caves | Joined by bewildered Wizard 16451 | -5/Proximity Caves | Joined by bewildered Wizard 16475 | -5/Proximity Caves | Spotter reported a threat 16538 | -5/Proximity Caves | Spotted B-75 Beast 16560 | -5/Proximity Caves | Allies destroyed B-75 Beast 16589 | -5/Proximity Caves | Joined by bewildered Wizard 16589 | -5/Proximity Caves | Joined by bewildered Wizard 16667 | -5/Proximity Caves | Spotter reported a threat 16911 | -5/Proximity Caves | Joined by bewildered Wizard 16912 | -5/Proximity Caves | Joined by bewildered Wizard 16928 | -5/Proximity Caves | Discovered new exit (range 8) 16935 | -5/Proximity Caves | Identified exit to Factory 17124 | -5/Proximity Caves | Entered Factory 17124 | -5/Factory | Accompanied by 3 allies 17124 | -5/Factory | Evolved 2 slots: Propulsion x1, Utility x1 17457 | -5/Factory | Build established: Hacker-Assassin 17595 | -5/Factory | Identified exit to Upper Caves 17789 | -5/Factory | Repaired Corrupted Imp. Cooling System? 17937 | -5/Factory | Repaired Med. Armored Exoskeleton 18009 | -5/Factory | Repaired Adv. Sensor Array 18090 | -5/Factory | Repaired F-cell Engine 18466 | -5/Factory | Discovered new exit (range 18) 18549 | -5/Factory | Attached Cargo Legs, gained temporary slots: Utility x2 18557 | -5/Factory | Found Lrg. Botcube 18562 | -5/Factory | Joined by bewildered Wizard 18564 | -5/Factory | Joined by bewildered Wizard 18565 | -5/Factory | Joined by bewildered Wizard 18566 | -5/Factory | Joined by bewildered Wizard 18666 | -5/Factory | Incoming investigation squad redirected 18712 | -5/Factory | Loaded intel: 8 recycling unit locations 18727 | -5/Factory | Joined by bewildered Wizard 18865 | -5/Factory | Build established: Mutant 18893 | -5/Factory | Joined by bewildered Wizard 18894 | -5/Factory | Joined by bewildered Wizard 18913 | -5/Factory | Joined by bewildered Wizard 18918 | -5/Factory | Lost 3 allies 19087 | -5/Factory | Joined by bewildered Wizard 19184 | -5/Factory | Scrapoids reinforcements arrived? 19206 | -5/Factory | Entered Upper Caves 19206 | -5/Upper Caves | Accompanied by 9 allies 19467 | -5/Upper Caves | Joined by bewildered Wizard 19492 | -5/Upper Caves | Joined by bewildered Wizard 19502 | -5/Upper Caves | Build established: Commander-Assassin 19688 | -5/Upper Caves | Joined by bewildered Wizard 19894 | -5/Upper Caves | Spotted B-75 Beast 19933 | -5/Upper Caves | Joined by bewildered Wizard 19963 | -5/Upper Caves | Allies destroyed B-75 Beast 19999 | -5/Upper Caves | Joined by bewildered Wizard 19999 | -5/Upper Caves | Joined by bewildered Wizard 20113 | -5/Upper Caves | Encountered a Warlord checkpoint 20117 | -5/Upper Caves | Discovered new exit (range 5) 20122 | -5/Upper Caves | Identified exit to Upper Caves 20174 | -5/Upper Caves | Learned 4 Factory zone layouts 21072 | -5/Upper Caves | Lrg. Botcube activated 21108 | -5/Upper Caves | Lrg. Botcube completed mutation into hovering form, armed with 3 guns, 1 cannon 21158 | -5/Upper Caves | Entered another Upper Caves area 21158 | -5/Upper Caves | Accompanied by 9 allies 21170 | -5/Upper Caves | Discovered new exit (range 19) 21192 | -5/Upper Caves | Identified exit to Factory 21350 | -5/Upper Caves | Joined by bewildered Wizard 21353 | -5/Upper Caves | Joined by bewildered Wizard 21354 | -5/Upper Caves | Joined by bewildered Wizard 21449 | -5/Upper Caves | Build established: Commander-Mutant 21610 | -5/Upper Caves | Encountered a Warlord checkpoint 21684 | -5/Upper Caves | Discovered new exit (range 8) 21692 | -5/Upper Caves | Identified exit to Zhirov 21751 | -5/Upper Caves | Entered Zhirov 21751 | -5/Zhirov | Accompanied by 9 allies 21751 | -5/Zhirov | Discovered new exit (range 3) 21754 | -5/Zhirov | Identified exit to Proximity Caves 21784 | -5/Zhirov | Met Zhirov 21785 | -5/Zhirov | Build established: Commander-Assassin 21806 | -5/Zhirov | Learned location of Testing (-3) 21806 | -5/Zhirov | Learned location of Command (-1) 21816 | -5/Zhirov | Zhirov requested help retrieving the SGEMP Prototype 21845 | -5/Zhirov | Found Alien Artifact 21845 | -5/Zhirov | Identified Integrated Dissipator 21845 | -5/Zhirov | Installed Integrated Dissipator, increased core heat dissipation (+20) 21860 | -5/Zhirov | Found Alien Artifact 21887 | -5/Zhirov | Attached CPS modules to Large Mutated Botcube 22099 | -5/Zhirov | Entered Proximity Caves 22099 | -4/Proximity Caves | Accompanied by 9 allies 22127 | -4/Proximity Caves | Attracted the attention of an 0b10 checkpoint 22385 | -4/Proximity Caves | Spotted B-86 Titan 22393 | -4/Proximity Caves | Allies destroyed B-86 Titan 22405 | -4/Proximity Caves | Found Hvy. Reflective Plating 22412 | -4/Proximity Caves | System corruption reached 10% 22429 | -4/Proximity Caves | Joined by bewildered Wizard 22655 | -4/Proximity Caves | Learned Research interactive machine intel 22666 | -4/Proximity Caves | Discovered exit to Factory (range 15) 22740 | -4/Proximity Caves | Entered Factory 22740 | -4/Factory | Accompanied by 5 allies 22740 | -4/Factory | Evolved 2 slots: Propulsion x1, Utility x1 22741 | -4/Factory | Identified exit to Upper Caves 22742 | -4/Factory | Identified exit to Research 22977 | -4/Factory | Identified exit to Extension 23067 | -4/Factory | Spotted B-86 Titan 23117 | -4/Factory | Allies destroyed B-86 Titan 23345 | -4/Factory | Destroyed 7 combat bots 23476 | -4/Factory | Repaired Lrn. Missile Launcher 23721 | -4/Factory | Loaded intel: 8 recycling unit locations 23740 | -4/Factory | First assault squad dispatched 23748 | -4/Factory | Incoming investigation squad redirected 23779 | -4/Factory | Garrison activated, responded to threat 23807 | -4/Factory | Joined by bewildered Wizard 23808 | -4/Factory | Joined by bewildered Wizard 23820 | -4/Factory | Joined by bewildered Wizard 23824 | -4/Factory | Joined by bewildered Wizard 23825 | -4/Factory | Local machine network offline 23832 | -4/Factory | Joined by bewildered Wizard 23832 | -4/Factory | Joined by bewildered Wizard 23850 | -4/Factory | Joined by bewildered Wizard 23882 | -4/Factory | Discovered exit to Research (range 21) 23895 | -4/Factory | Watched by a mysterious "MATRIX" hacker 23899 | -4/Factory | Joined by bewildered Wizard 23982 | -4/Factory | Joined by bewildered Wizard 23988 | -4/Factory | Lost 3 allies 24016 | -4/Factory | Entered Research 24016 | -3/Research | Accompanied by 2 allies 24016 | -3/Research | Evolved 2 slots: Utility x1, Weapon x1 24017 | -3/Research | Identified exit to Armory 24018 | -3/Research | Loaded intel: 128 machine locations 24019 | -3/Research | Loaded intel: 47 interactive machine locations 24020 | -3/Research | Loaded intel: 24 terminal locations 24053 | -3/Research | Joined by bewildered Wizard 24055 | -3/Research | Joined by bewildered Wizard 24098 | -3/Research | Discovered new exit (range 4) 24101 | -3/Research | Identified exit to Research 24266 | -3/Research | First assault squad dispatched 24365 | -3/Research | Build established: Hacker-Assassin 24487 | -3/Research | Identified exit to Testing 24960 | -3/Research | Found Gamma Bomb Array 25031 | -3/Research | Incoming assault squad redirected 25207 | -3/Research | Identified Transdimensional Reconstructor 25207 | -3/Research | Warped through subspace 25333 | -3/Research | Joined by bewildered Wizard 25337 | -3/Research | Joined by bewildered Wizard 25432 | -3/Research | Lost 3 allies 25648 | -3/Research | Lost 4 parts (1p2n1w) 25752 | -3/Research | System corruption reached 10% 25755 | -3/Research | Identified Enh. Scrap Shield 25821 | -3/Research | Entered Testing 25822 | -3/Testing | Attached Meta Core, gained temporary slots: Propulsion, Utility, Weapon 25847 | -3/Testing | Lost 10 parts (2p2n6u) 25879 | -3/Testing | Found Prototype Energy Gun 25879 | -3/Testing | Identified Hyp. EM Gauss Rifle 25931 | -3/Testing | Found Prototype Launcher 26083 | -3/Testing | Found Prototype Device 26083 | -3/Testing | Identified Exp. Focal Shield 26094 | -3/Testing | Repaired Imp. Transmission Jammer 26128 | -3/Testing | Found Prototype Ballistic Cannon 26147 | -3/Testing | Identified Perforator 26438 | -3/Testing | Build established: Scavenger-Mutant 26627 | -3/Testing | Found Unknown Device 26627 | -3/Testing | Identified Quantum Capacitor 26647 | -3/Testing | System corruption reached 30% 26864 | -3/Testing | Scanned by Researcher 26888 | -3/Testing | Core integrity fell below 50% 26918 | -3/Testing | Build established: Mutant 27062 | -3/Testing | Discovered exit to Research (range 4) 27076 | -3/Testing | Entered Research 27076 | -2/Research | Evolved 2 slots: Power x1, Utility x1 27077 | -2/Research | Identified exit to Quarantine 27161 | -2/Research | Repaired Helical Railgun 27403 | -2/Research | Identified Z-bomb Delivery System 27426 | -2/Research | Core integrity fell below 50% 27444 | -2/Research | Lost 18 parts (4p5n6u3w) 27480 | -2/Research | Released all parts (4) 27482 | -2/Research | Core integrity fell below 20% 27489 | -2/Research | Destroyed by S-43 Plague with Heavy Machine Gun Last Messages --------------- 27436_ Penetrated by Slug. 27436_ P-80 Master resets H-88 Terminator, system corruption cleaned. 27437_ Slug penetrates Wall. 27439_ System corrupted: Matter fused (-10). 27439_ Penetrated by Slug. 27449_ Slug penetrates Wall. 27467_ Energy Well destroyed. 27472_ P-80 Master resets G-73 Enforcer, system corruption cleaned. 27476_ Centrium Leg destroyed. 27477_ Hcp. Storage Unit destroyed. 27479_ K-01 Serf destroyed. 27479_ Door malfunctions. 27480_ Released Adv. Target Analyzer. 27480_ Released Adv. Signal Interpreter. 27480_ Released Centrium Wheel. 27480_ Released Amulet of Y3-NDR. 27480_ Acquired Amulet of Y3-NDR. 27481_ Slug penetrates G-73 Enforcer. 27481_ Penetrated by Slug. 27483_ S-43 Plague destroyed. Map ----- +----------------------------------------------------+ | ????????# """ """ # #????????? | | ????????# """ | R" ##"######/#"### #????????? | | ????????# """ """ ## # #????????? | | ????????# ## # #????????? | | ????????# ## # #????????? | | ????????############### """ # #????????? | | ??????????????????????# """ # #????????? | | ??????????????????????# """ # #??????### | | ??????????????????????# """ # #??????# | | ??????????????????????# """ # #??????# | | ??????????????????????# """ # ######## | | ??????????????????????# """ | # # | | ??????????????????????# "Y" # #= | | ??????????????????????# """ # # | | ??????????????????????############## # | | ?????????????????????????????????########## # | | ????????????????????????????????#! # # | | ????????????????????????????????# # ### | | ????????????????????????????????# """ # | | ????????????????????????????????# ""T"" # | | ???????????????##############???# "" "" # | | ???????????????# #???? # | | ???????????????# #?????? ######## | | ???????????????# #???????? ???????# | | ???????????????# ###########/########## | | ???????????????# @ # =[![[[ | | ???????????????# ; %]!]== | | ???????????????# # ][ %= | | ???????????????# ; w | | ???????????????# """" ###################### | | ???????????????# """" #????????????????????# | | ???????????????# """" #????????????????????# | | ???????????????# """" #????????????????????+ | | ???????????????#????#########????????????????????# | | ?????????????????????????????????????????????????# | | ?????????????????????????????????????????????????# | | ?????????????????????????????????????????????????? | | ?????????????????????????????????????????????????? | | ?????????????????????????????????????????????????? | | ?????????????????????????????????????????????????? | | ?????????????????????????????????????????????????? | | ?????????????????????????????????????????????????? | | ?????????????????????????????????????????????????? | | ?????????????????????????????????????????????????? | | ?????????????????????????????????????????????????? | | ?????????????????????????????????????????????????? | | ?????????????????????????????????????????????????? | | ?????????????????????????????????????????????????? | | ?????????????????????????????????????????????????? | | ?????????????????????????????????????????????????? | +----------------------------------------------------+ Best States ------------- Heat Dissipation 97 Energy Generation 45 Energy Capacity 930 Matter Stores 300 Matter Capacity 300 Sight Range 22 Robot Scan Range 16 Terrain Scan Density 10 Jamming Range 14 Armor Coverage 800 Resistance: KI 30 Resistance: TH 30 Propulsion Shielding 66 Evasion (%) 70 Target Analysis 12 Recoil Reduction 2 Particle Charging 20 Kinecelleration 40 Salvage Targeting 2 Offensive Hacking 14 Defensive Hacking 14 Item Schematics ----------------- Combat Drone Bay | -6/Data Miner | Free Lgt. Regenerative Plating | -6/Data Miner | Free Cld. Gravmag System | -6/Data Miner | Free Adv. EM Disruption Field | -6/Data Miner | Free Imp. KE Penetrator | -6/Data Miner | Free Adv. Medium Treads | -6/Data Miner | Free Graphene Brace | -6/Data Miner | Free Dispersion Rifle | -6/Data Miner | Free Mass Driver | -6/Data Miner | Free Imp. Force Field | -6/Data Miner | Free Imp. Armor Integrity Analyzer | -6/Data Miner | Free Adv. Powered Armor | -6/Data Miner | Free Assault Drone Bay | -5/Zhirov | Free Exp. Heat Sink | -5/Zhirov | Free Exp. Optical Array | -5/Zhirov | Free Imp. Arc Thrower | -5/Zhirov | Free Imp. Diametric Drive | -3/Testing | Archive Adv. EM Shield | -3/Testing | Archive Robot Schematics ------------------ B-60 Warrior | -6/Data Miner | Free B-48 Gladiator | -6/Data Miner | Free S-27 Virus | -6/Data Miner | Free G-67 Veteran | -6/Data Miner | Free R-10 Processor | -6/Data Miner | Free C-55 Analyst | -3/Testing | Archive S-43 Plague | -3/Testing | Archive Fabricated ------------ Nothing Repaired ---------- Imp. Cooling System | 84% | -5/Factory | Corrupted Med. Armored Exoskeleton | 34% | -5/Factory Adv. Sensor Array | 45% | -5/Factory F-cell Engine | 50% | -5/Factory Lrn. Missile Launcher | 12% | -4/Factory Imp. Transmission Jammer | 8% | -3/Testing Helical Railgun | 19% | -2/Research Studied --------- Titanium Leg | -6/Factory | Hacked Hvy. Plasma Cannon | -6/Factory | Hacked Med. Armored Exoskeleton | -5/Factory | Hacked Arm. Leg | -3/Research | Hacked Com. HERF Cannon | -3/Research | Hacked Alien Tech Used ----------------- Core Expander Integrated Dissipator Transdimensional Reconstructor Achievements -------------- None Challenges ------------ None Game ------ Seed TowerDroneScythe Manual? 0 Play Time 04:47:07 Cumulative 475.2 hours Start 2026.08.28 @ 01:17:50 End 2026.09.02 @ 02:58:37 Sessions 5 Manual Loads 0 Difficulty Rogue Special Mode None Game No. 346 Rogue 346 Adventurer 0 Explorer 0 Win Type - Total 9 Types 4/0/3/2/0/0/0/0/0/0 Lore% 57 Gallery% 71 Achievement% 57 Wizard Run 0 Options --------- Layout 2 ASCII 0 Keyboard 1 Movement Vi Keybinds 0 Fullscreen 2 Font 32/Smallcaps Map View 77x44 Zoom Use 0% Tactical HUD 1 Map Filters NONE Filters NONE Steam 1 RUN: a2bc8373-5494-46dd-bd7b-c53ba958235b